[Event "Titled Tuesday Blitz June 13 Late 2023"]
[White "Makridis, Dimitrios"]
[Black "Gadimbayli, Abdulla"]
[WhiteFideId "25864475"]
[BlackFideId "13404938"]
[WhiteElo "2277"]
[BlackElo "2386"]
[Result "0-1"]
[Round "11"]
[TimeControl "180+2"]
[Date "2023.06.13"]
[WhiteClock "0:00:08"]
[BlackClock "0:00:14"]
[Board "22"]

1. e4 {[%clk 0:02:53]}  c5 {[%clk 0:02:59]} 2. Nf3 {[%clk 0:02:43]}  d6 {[%clk 0:02:57]} 3. d4 {[%clk 0:02:43]}  cxd4 {[%clk 0:02:57]} 4. Nxd4 {[%clk 0:02:44]}  Nf6 {[%clk 0:02:57]} 5. Nc3 {[%clk 0:02:45]}  g6 {[%clk 0:02:57]} 6. Be3 {[%clk 0:02:42]}  Bg7 {[%clk 0:02:58]} 7. f3 {[%clk 0:02:33]}  O-O {[%clk 0:02:57]} 8. Qd2 {[%clk 0:02:33]}  Nc6 {[%clk 0:02:56]} 9. O-O-O {[%clk 0:02:33]}  d5 {[%clk 0:02:56]} 10. Qe1 {[%clk 0:02:24]}  e5 {[%clk 0:02:50]} 11. Nxc6 {[%clk 0:02:23]}  bxc6 {[%clk 0:02:51]} 12. exd5 {[%clk 0:02:23]}  cxd5 {[%clk 0:02:51]} 13. Bg5 {[%clk 0:02:24]}  d4 {[%clk 0:02:03]} 14. Qxe5 {[%clk 0:02:19]}  h6 {[%clk 0:01:51]} 15. Rxd4 {[%clk 0:01:48]}  Bd7 {[%clk 0:01:46]} 16. Bd2 {[%clk 0:00:49]}  Nh7 {[%clk 0:01:25]} 17. Qd6 {[%clk 0:00:49]}  Bxd4 {[%clk 0:01:24]} 18. Qxd4 {[%clk 0:00:49]}  Ng5 {[%clk 0:01:20]} 19. Nd5 {[%clk 0:00:44]}  f6 {[%clk 0:00:41]} 20. Bc3 {[%clk 0:00:36]}  Nh7 {[%clk 0:00:36]} 21. Bd3 {[%clk 0:00:29]}  Be6 {[%clk 0:00:32]} 22. Be4 {[%clk 0:00:14]}  Rc8 {[%clk 0:00:14]} 23. Rd1 {[%clk 0:00:13]}  Qe8 {[%clk 0:00:12]} 24. Nf4 {[%clk 0:00:09]}  Bf7 {[%clk 0:00:13]} 25. h4 {[%clk 0:00:06]}  Kg7 {[%clk 0:00:06]} 26. h5 {[%clk 0:00:06]}  g5 {[%clk 0:00:07]} 27. Bxh7 {[%clk 0:00:07]}  Kxh7 {[%clk 0:00:03]} 28. Qxf6 {[%clk 0:00:02]}  Rxc3 {[%clk 0:00:03]} 29. Qxc3 {[%clk 0:00:02]}  gxf4 {[%clk 0:00:04]} 30. Qd3+ {[%clk 0:00:03]}  Kh8 {[%clk 0:00:04]} 31. Qd4+ {[%clk 0:00:03]}  Kg8 {[%clk 0:00:04]} 32. Qxf4 {[%clk 0:00:03]}  Qe6 {[%clk 0:00:05]} 33. g4 {[%clk 0:00:03]}  Qxa2 {[%clk 0:00:05]} 34. Qxh6 {[%clk 0:00:03]}  Qa1+ {[%clk 0:00:06]} 35. Kd2 {[%clk 0:00:04]}  Rd8+ {[%clk 0:00:07]} 36. Ke3 {[%clk 0:00:04]}  Qxd1 {[%clk 0:00:07]} 37. Qg5+ {[%clk 0:00:05]}  Kf8 {[%clk 0:00:08]} 38. Qh6+ {[%clk 0:00:05]}  Ke7 {[%clk 0:00:09]} 39. Qg5+ {[%clk 0:00:05]}  Ke8 {[%clk 0:00:09]} 40. Qe5+ {[%clk 0:00:05]}  Kd7 {[%clk 0:00:08]} 41. Qb5+ {[%clk 0:00:05]}  Ke7 {[%clk 0:00:07]} 42. Qe5+ {[%clk 0:00:05]}  Be6 {[%clk 0:00:07]} 43. Qg5+ {[%clk 0:00:05]}  Kd7 {[%clk 0:00:07]} 44. Qb5+ {[%clk 0:00:05]}  Kc7 {[%clk 0:00:07]} 45. Qc5+ {[%clk 0:00:06]}  Kb8 {[%clk 0:00:07]} 46. Qb5+ {[%clk 0:00:06]}  Kc7 {[%clk 0:00:08]} 47. Qc5+ {[%clk 0:00:07]}  Kd7 {[%clk 0:00:08]} 48. Qb5+ {[%clk 0:00:07]}  Ke7 {[%clk 0:00:09]} 49. Qg5+ {[%clk 0:00:08]}  Ke8 {[%clk 0:00:09]} 50. Qb5+ {[%clk 0:00:06]}  Qd7 {[%clk 0:00:07]} 51. Qe5 {[%clk 0:00:06]}  Qe7 {[%clk 0:00:07]} 52. Qh8+ {[%clk 0:00:06]}  Kd7 {[%clk 0:00:07]} 53. Qd4+ {[%clk 0:00:06]}  Kc7 {[%clk 0:00:08]} 54. Qa4 {[%clk 0:00:07]}  Bd7+ {[%clk 0:00:08]} 55. Qe4 {[%clk 0:00:06]}  Re8 {[%clk 0:00:09]} 56. Qxe7 {[%clk 0:00:06]}  Rxe7+ {[%clk 0:00:09]} 57. Kf4 {[%clk 0:00:06]}  Kd6 {[%clk 0:00:10]} 58. g5 {[%clk 0:00:06]}  Rf7+ {[%clk 0:00:11]} 59. Kg3 {[%clk 0:00:06]}  Ke6 {[%clk 0:00:11]} 60. g6 {[%clk 0:00:05]}  Rg7 {[%clk 0:00:09]} 61. Kh4 {[%clk 0:00:04]}  Kf6 {[%clk 0:00:09]} 62. c4 {[%clk 0:00:04]}  Bf5 {[%clk 0:00:10]} 63. c5 {[%clk 0:00:04]}  Bxg6 {[%clk 0:00:10]} 64. hxg6 {[%clk 0:00:05]}  Rxg6 {[%clk 0:00:11]} 65. b4 {[%clk 0:00:06]}  Rg8 {[%clk 0:00:12]} 66. b5 {[%clk 0:00:06]}  Kf5 {[%clk 0:00:12]} 67. c6 {[%clk 0:00:07]}  Kf4 {[%clk 0:00:13]} 68. Kh5 {[%clk 0:00:07]}  Rg5+ {[%clk 0:00:12]} 69. Kh6 {[%clk 0:00:08]}  Rxb5 {[%clk 0:00:13]} 70. c7 {[%clk 0:00:08]}  Rc5 {[%clk 0:00:14]} 71. Kg7 {[%clk 0:00:08]}  Rxc7+ {[%clk 0:00:14]} 72. Kg8 {[%clk 0:00:08]}  a5 {[%clk 0:00:14]} 0-1


[Site "https://www.chess.com"]

[Event "Titled Tuesday Blitz June 13 Late 2023"]
[White "Santos Ruiz, Miguel"]
[Black "Korchmar, Vasiliy"]
[WhiteFideId "22291482"]
[BlackFideId "24131750"]
[WhiteElo "2499"]
[BlackElo "2370"]
[Result "0-1"]
[Round "11"]
[TimeControl "180+2"]
[Date "2023.06.13"]
[WhiteClock "0:00:14"]
[BlackClock "0:00:17"]
[Board "23"]

1. d4 {[%clk 0:03:00]}  d5 {[%clk 0:02:59]} 2. Bf4 {[%clk 0:03:01]}  Nf6 {[%clk 0:02:59]} 3. e3 {[%clk 0:03:01]}  c5 {[%clk 0:03:00]} 4. c3 {[%clk 0:03:01]}  Nc6 {[%clk 0:03:00]} 5. Nd2 {[%clk 0:03:01]}  Bf5 {[%clk 0:03:00]} 6. Ngf3 {[%clk 0:03:01]}  Qb6 {[%clk 0:02:55]} 7. Qb3 {[%clk 0:03:00]}  c4 {[%clk 0:02:55]} 8. Qxb6 {[%clk 0:02:56]}  axb6 {[%clk 0:02:56]} 9. a3 {[%clk 0:02:57]}  b5 {[%clk 0:02:54]} 10. Rc1 {[%clk 0:02:56]}  h6 {[%clk 0:02:54]} 11. h3 {[%clk 0:02:57]}  e6 {[%clk 0:02:55]} 12. g4 {[%clk 0:02:57]}  Bh7 {[%clk 0:02:52]} 13. Ne5 {[%clk 0:02:57]}  Nxe5 {[%clk 0:02:51]} 14. Bxe5 {[%clk 0:02:57]}  Nd7 {[%clk 0:02:52]} 15. Bg3 {[%clk 0:02:58]}  Nb6 {[%clk 0:02:53]} 16. Ra1 {[%clk 0:02:49]}  b4 {[%clk 0:02:52]} 17. cxb4 {[%clk 0:02:47]}  Bxb4 {[%clk 0:02:52]} 18. Be2 {[%clk 0:02:42]}  c3 {[%clk 0:02:48]} 19. bxc3 {[%clk 0:02:40]}  Bxc3 {[%clk 0:02:49]} 20. Rd1 {[%clk 0:02:29]}  Rxa3 {[%clk 0:02:39]} 21. Kf1 {[%clk 0:02:16]}  Ra2 {[%clk 0:02:07]} 22. Nb3 {[%clk 0:02:01]}  Bc2 {[%clk 0:01:52]} 23. Rc1 {[%clk 0:02:01]}  Bxb3 {[%clk 0:01:51]} 24. Rxc3 {[%clk 0:02:01]}  Bc4 {[%clk 0:01:51]} 25. Bxc4 {[%clk 0:02:00]}  Nxc4 {[%clk 0:01:52]} 26. Kg2 {[%clk 0:01:58]}  Kd7 {[%clk 0:01:41]} 27. Rb1 {[%clk 0:01:58]}  Kc6 {[%clk 0:01:40]} 28. e4 {[%clk 0:01:54]}  Rha8 {[%clk 0:01:37]} 29. exd5+ {[%clk 0:01:53]}  exd5 {[%clk 0:01:38]} 30. Rf3 {[%clk 0:01:54]}  f6 {[%clk 0:01:34]} 31. Re1 {[%clk 0:01:54]}  R8a3 {[%clk 0:01:15]} 32. Rxa3 {[%clk 0:01:52]}  Rxa3 {[%clk 0:00:57]} 33. Re7 {[%clk 0:01:53]}  b5 {[%clk 0:00:58]} 34. Rc7+ {[%clk 0:01:39]}  Kb6 {[%clk 0:00:58]} 35. Rxg7 {[%clk 0:01:40]}  b4 {[%clk 0:00:58]} 36. Rg6 {[%clk 0:01:41]}  b3 {[%clk 0:00:55]} 37. Rxf6+ {[%clk 0:01:38]}  Kb5 {[%clk 0:00:55]} 38. Bd6 {[%clk 0:00:59]}  b2 {[%clk 0:00:54]} 39. Bxa3 {[%clk 0:00:55]}  b1=Q {[%clk 0:00:54]} 40. Bc5 {[%clk 0:00:51]}  Qe4+ {[%clk 0:00:54]} 41. Kg3 {[%clk 0:00:51]}  Nd2 {[%clk 0:00:48]} 42. Kh4 {[%clk 0:00:47]}  Nf3+ {[%clk 0:00:38]} 43. Kh5 {[%clk 0:00:46]}  Nxd4 {[%clk 0:00:36]} 44. Bxd4 {[%clk 0:00:43]}  Qxd4 {[%clk 0:00:37]} 45. Rf5 {[%clk 0:00:36]}  Kc4 {[%clk 0:00:31]} 46. Kxh6 {[%clk 0:00:31]}  Qh8+ {[%clk 0:00:31]} 47. Kg6 {[%clk 0:00:31]}  Qxh3 {[%clk 0:00:29]} 48. g5 {[%clk 0:00:30]}  d4 {[%clk 0:00:30]} 49. Rf4 {[%clk 0:00:25]}  Qe6+ {[%clk 0:00:29]} 50. Rf6 {[%clk 0:00:25]}  Qe4+ {[%clk 0:00:24]} 51. Kg7 {[%clk 0:00:26]}  d3 {[%clk 0:00:22]} 52. f3 {[%clk 0:00:19]}  Qe7+ {[%clk 0:00:22]} 53. Kg6 {[%clk 0:00:16]}  d2 {[%clk 0:00:21]} 54. f4 {[%clk 0:00:16]}  d1=Q {[%clk 0:00:21]} 55. f5 {[%clk 0:00:17]}  Qd3 {[%clk 0:00:17]} 56. Kh6 {[%clk 0:00:14]}  Qh3+ {[%clk 0:00:16]} 57. Kg6 {[%clk 0:00:14]}  Qhh7# {[%clk 0:00:17]} 0-1


[Site "https://www.chess.com"]

[Event "Titled Tuesday Blitz June 13 Late 2023"]
[White "Bayo Milagro, Alvaro"]
[Black "Yanchenko, Roman"]
[WhiteFideId "22275240"]
[BlackFideId "4137329"]
[WhiteElo "2270"]
[BlackElo "2491"]
[Result "0-1"]
[Round "11"]
[TimeControl "180+2"]
[Date "2023.06.13"]
[WhiteClock "0:00:14"]
[BlackClock "0:00:59"]
[Board "25"]

1. d4 {[%clk 0:03:00]}  d5 {[%clk 0:03:00]} 2. Nf3 {[%clk 0:03:01]}  Bf5 {[%clk 0:02:59]} 3. c4 {[%clk 0:02:58]}  Bxb1 {[%clk 0:02:59]} 4. Rxb1 {[%clk 0:02:58]}  dxc4 {[%clk 0:02:59]} 5. Qa4+ {[%clk 0:02:53]}  c6 {[%clk 0:02:59]} 6. Qxc4 {[%clk 0:02:53]}  e6 {[%clk 0:03:00]} 7. g3 {[%clk 0:02:48]}  Qd5 {[%clk 0:02:57]} 8. b3 {[%clk 0:02:40]}  Nf6 {[%clk 0:02:53]} 9. Bg2 {[%clk 0:02:41]}  Nbd7 {[%clk 0:02:44]} 10. O-O {[%clk 0:02:39]}  Nb6 {[%clk 0:02:40]} 11. Qc2 {[%clk 0:02:37]}  Qf5 {[%clk 0:02:36]} 12. Qxf5 {[%clk 0:02:35]}  exf5 {[%clk 0:02:36]} 13. Ne5 {[%clk 0:02:17]}  Rd8 {[%clk 0:02:30]} 14. e3 {[%clk 0:02:11]}  Bd6 {[%clk 0:02:26]} 15. Bb2 {[%clk 0:02:06]}  O-O {[%clk 0:02:23]} 16. Rfd1 {[%clk 0:02:05]}  Nbd5 {[%clk 0:02:22]} 17. Rbc1 {[%clk 0:02:02]}  Rfe8 {[%clk 0:02:21]} 18. Nc4 {[%clk 0:01:57]}  Bc7 {[%clk 0:02:17]} 19. Bf3 {[%clk 0:01:56]}  g6 {[%clk 0:02:16]} 20. Kg2 {[%clk 0:01:55]}  h5 {[%clk 0:02:15]} 21. h4 {[%clk 0:01:53]}  Ne4 {[%clk 0:02:14]} 22. Ne5 {[%clk 0:01:47]}  Ndf6 {[%clk 0:02:04]} 23. Nd3 {[%clk 0:01:41]}  Bd6 {[%clk 0:01:58]} 24. Bc3 {[%clk 0:01:31]}  Ng4 {[%clk 0:01:39]} 25. Bxg4 {[%clk 0:01:13]}  hxg4 {[%clk 0:01:36]} 26. Bb4 {[%clk 0:01:12]}  Bb8 {[%clk 0:01:34]} 27. Nc5 {[%clk 0:01:06]}  Nxc5 {[%clk 0:01:33]} 28. Bxc5 {[%clk 0:01:05]}  f6 {[%clk 0:01:31]} 29. Ba3 {[%clk 0:01:00]}  Kf7 {[%clk 0:01:31]} 30. Rh1 {[%clk 0:00:49]}  Rh8 {[%clk 0:01:24]} 31. Bb2 {[%clk 0:00:45]}  Rd5 {[%clk 0:01:23]} 32. Rhd1 {[%clk 0:00:40]}  a6 {[%clk 0:01:21]} 33. Rc5 {[%clk 0:00:38]}  Ke6 {[%clk 0:01:13]} 34. Rdc1 {[%clk 0:00:33]}  g5 {[%clk 0:01:10]} 35. hxg5 {[%clk 0:00:33]}  fxg5 {[%clk 0:01:10]} 36. Rxd5 {[%clk 0:00:28]}  cxd5 {[%clk 0:01:10]} 37. Rh1 {[%clk 0:00:20]}  Rxh1 {[%clk 0:01:00]} 38. Kxh1 {[%clk 0:00:21]}  f4 {[%clk 0:01:00]} 39. Kg2 {[%clk 0:00:20]}  Kf5 {[%clk 0:01:00]} 40. gxf4 {[%clk 0:00:18]}  gxf4 {[%clk 0:01:01]} 41. f3 {[%clk 0:00:17]}  fxe3 {[%clk 0:01:00]} 42. Bc1 {[%clk 0:00:14]}  Bf4 {[%clk 0:00:59]} 0-1


[Site "https://www.chess.com"]

[Event "Titled Tuesday Blitz June 13 Late 2023"]
[White "Gimenez Aguirre, Alejo Ismael"]
[Black "Mekhitarian, Krikor Sevag"]
[WhiteFideId "32041667"]
[BlackFideId "2107660"]
[WhiteElo "2165"]
[BlackElo "2604"]
[Result "0-1"]
[Round "11"]
[TimeControl "180+2"]
[Date "2023.06.13"]
[WhiteClock "0:00:04"]
[BlackClock "0:00:05"]
[Board "28"]

1. e4 {[%clk 0:02:54]}  e6 {[%clk 0:02:55]} 2. d4 {[%clk 0:02:53]}  d5 {[%clk 0:02:56]} 3. Nd2 {[%clk 0:02:53]}  c5 {[%clk 0:02:56]} 4. Ngf3 {[%clk 0:02:53]}  cxd4 {[%clk 0:02:55]} 5. Nxd4 {[%clk 0:02:53]}  Nf6 {[%clk 0:02:56]} 6. exd5 {[%clk 0:02:51]}  Nxd5 {[%clk 0:02:56]} 7. c3 {[%clk 0:02:42]}  e5 {[%clk 0:02:54]} 8. N4f3 {[%clk 0:02:39]}  f6 {[%clk 0:02:49]} 9. Bc4 {[%clk 0:02:37]}  Nb6 {[%clk 0:02:48]} 10. Bb5+ {[%clk 0:02:37]}  Bd7 {[%clk 0:02:48]} 11. Bxd7+ {[%clk 0:02:35]}  Qxd7 {[%clk 0:02:48]} 12. O-O {[%clk 0:02:36]}  Nc6 {[%clk 0:02:49]} 13. Qb3 {[%clk 0:02:24]}  O-O-O {[%clk 0:02:47]} 14. Nc4 {[%clk 0:02:23]}  Nxc4 {[%clk 0:02:40]} 15. Qxc4 {[%clk 0:02:23]}  Qd5 {[%clk 0:02:40]} 16. Qe2 {[%clk 0:02:16]}  Qd3 {[%clk 0:02:37]} 17. Qxd3 {[%clk 0:02:06]}  Rxd3 {[%clk 0:02:36]} 18. Be3 {[%clk 0:02:07]}  Be7 {[%clk 0:02:33]} 19. Rfd1 {[%clk 0:02:06]}  Rhd8 {[%clk 0:02:07]} 20. Rxd3 {[%clk 0:02:05]}  Rxd3 {[%clk 0:02:08]} 21. Kf1 {[%clk 0:02:06]}  b5 {[%clk 0:02:06]} 22. Ke2 {[%clk 0:02:02]}  Rd5 {[%clk 0:02:05]} 23. Rc1 {[%clk 0:02:00]}  Rd7 {[%clk 0:01:59]} 24. a3 {[%clk 0:01:58]}  Na5 {[%clk 0:01:53]} 25. Nd2 {[%clk 0:01:58]}  Kb7 {[%clk 0:01:51]} 26. g4 {[%clk 0:01:34]}  Nc4 {[%clk 0:01:49]} 27. Rc2 {[%clk 0:01:27]}  a5 {[%clk 0:01:46]} 28. h3 {[%clk 0:01:21]}  Kc6 {[%clk 0:01:46]} 29. Ne4 {[%clk 0:01:21]}  a4 {[%clk 0:01:41]} 30. Bc1 {[%clk 0:01:17]}  g6 {[%clk 0:01:40]} 31. f4 {[%clk 0:01:14]}  exf4 {[%clk 0:01:37]} 32. Bxf4 {[%clk 0:01:14]}  Kd5 {[%clk 0:01:38]} 33. Nf2 {[%clk 0:01:12]}  Bc5 {[%clk 0:01:23]} 34. Nd3 {[%clk 0:01:11]}  Re7+ {[%clk 0:01:23]} 35. Kf3 {[%clk 0:01:09]}  Kc6 {[%clk 0:01:10]} 36. h4 {[%clk 0:01:03]}  Re6 {[%clk 0:01:09]} 37. Rh2 {[%clk 0:00:59]}  Be7 {[%clk 0:01:01]} 38. g5 {[%clk 0:00:58]}  Kd5 {[%clk 0:00:56]} 39. gxf6 {[%clk 0:00:54]}  Rxf6 {[%clk 0:00:53]} 40. Kg4 {[%clk 0:00:50]}  Bd6 {[%clk 0:00:46]} 41. h5 {[%clk 0:00:45]}  Bxf4 {[%clk 0:00:33]} 42. Nxf4+ {[%clk 0:00:45]}  Kc6 {[%clk 0:00:19]} 43. hxg6 {[%clk 0:00:42]}  hxg6 {[%clk 0:00:19]} 44. Rh6 {[%clk 0:00:29]}  Ne3+ {[%clk 0:00:18]} 45. Kf3 {[%clk 0:00:26]}  Nc4 {[%clk 0:00:10]} 46. Ke4 {[%clk 0:00:24]}  Nxb2 {[%clk 0:00:08]} 47. Nxg6 {[%clk 0:00:24]}  Kb6 {[%clk 0:00:05]} 48. Ke5 {[%clk 0:00:20]}  Rc6 {[%clk 0:00:05]} 49. Kd4 {[%clk 0:00:17]}  Nc4 {[%clk 0:00:05]} 50. Ke4 {[%clk 0:00:14]}  Nxa3 {[%clk 0:00:05]} 51. Kd4 {[%clk 0:00:14]}  Nb1 {[%clk 0:00:03]} 52. Kd3 {[%clk 0:00:14]}  Nxc3 {[%clk 0:00:03]} 53. Rh8 {[%clk 0:00:11]}  Rxg6 {[%clk 0:00:03]} 54. Kxc3 {[%clk 0:00:11]}  Rg3+ {[%clk 0:00:03]} 55. Kb2 {[%clk 0:00:11]}  Rb3+ {[%clk 0:00:03]} 56. Ka2 {[%clk 0:00:11]}  Ka5 {[%clk 0:00:03]} 57. Rh4 {[%clk 0:00:11]}  Rf3 {[%clk 0:00:03]} 58. Rh8 {[%clk 0:00:12]}  Rf2+ {[%clk 0:00:03]} 59. Kb1 {[%clk 0:00:12]}  a3 {[%clk 0:00:03]} 60. Rh3 {[%clk 0:00:12]}  b4 {[%clk 0:00:03]} 61. Rh8 {[%clk 0:00:13]}  Ka4 {[%clk 0:00:04]} 62. Rh3 {[%clk 0:00:12]}  Rf1+ {[%clk 0:00:04]} 63. Kc2 {[%clk 0:00:12]}  b3+ {[%clk 0:00:03]} 64. Kc3 {[%clk 0:00:12]}  Rc1+ {[%clk 0:00:03]} 65. Kd2 {[%clk 0:00:13]}  b2 {[%clk 0:00:04]} 66. Rh4+ {[%clk 0:00:12]}  Kb3 {[%clk 0:00:04]} 67. Rh3+ {[%clk 0:00:04]}  Ka2 {[%clk 0:00:05]} 0-1


[Site "https://www.chess.com"]

[Event "Titled Tuesday Blitz June 13 Late 2023"]
[White "Rustemov, Alexander"]
[Black "Vovk, Orest"]
[WhiteFideId "4119002"]
[BlackFideId "14113490"]
[WhiteElo "2775"]
[BlackElo "2215"]
[Result "0-1"]
[Round "11"]
[TimeControl "180+2"]
[Date "2023.06.13"]
[WhiteClock "0:00:00"]
[BlackClock "0:00:13"]
[Board "31"]

1. g4 {[%clk 0:02:48]}  d5 {[%clk 0:02:41]} 2. Bg2 {[%clk 0:02:47]}  Bxg4 {[%clk 0:02:39]} 3. c4 {[%clk 0:02:46]}  d4 {[%clk 0:02:40]} 4. Bxb7 {[%clk 0:02:44]}  Nd7 {[%clk 0:02:39]} 5. Bxa8 {[%clk 0:02:43]}  Qxa8 {[%clk 0:02:39]} 6. f3 {[%clk 0:02:42]}  d3 {[%clk 0:02:40]} 7. exd3 {[%clk 0:02:35]}  Ngf6 {[%clk 0:02:35]} 8. d4 {[%clk 0:02:31]}  e6 {[%clk 0:02:29]} 9. Nc3 {[%clk 0:02:29]}  Be7 {[%clk 0:02:26]} 10. d3 {[%clk 0:02:28]}  Nh5 {[%clk 0:02:13]} 11. Be3 {[%clk 0:02:26]}  O-O {[%clk 0:02:08]} 12. Qe2 {[%clk 0:02:23]}  Bf5 {[%clk 0:01:52]} 13. O-O-O {[%clk 0:02:19]}  c5 {[%clk 0:01:42]} 14. d5 {[%clk 0:02:18]}  Bf6 {[%clk 0:01:37]} 15. Ne4 {[%clk 0:02:14]}  exd5 {[%clk 0:01:31]} 16. Ng3 {[%clk 0:02:13]}  Nxg3 {[%clk 0:01:19]} 17. hxg3 {[%clk 0:02:14]}  dxc4 {[%clk 0:01:14]} 18. dxc4 {[%clk 0:02:13]}  Rb8 {[%clk 0:01:13]} 19. Rd2 {[%clk 0:02:04]}  Qb7 {[%clk 0:00:44]} 20. Nh3 {[%clk 0:02:00]}  Qa6 {[%clk 0:00:36]} 21. b3 {[%clk 0:01:42]}  Rxb3 {[%clk 0:00:32]} 22. Rc2 {[%clk 0:00:57]}  Bxc2 {[%clk 0:00:28]} 23. Qxc2 {[%clk 0:00:54]}  Rc3 {[%clk 0:00:24]} 24. Rh2 {[%clk 0:00:17]}  Qxc4 {[%clk 0:00:21]} 25. Nf4 {[%clk 0:00:14]}  Rxc2+ {[%clk 0:00:20]} 26. Rxc2 {[%clk 0:00:13]}  Qf1+ {[%clk 0:00:20]} 27. Kd2 {[%clk 0:00:13]}  Qxf3 {[%clk 0:00:19]} 28. Ne2 {[%clk 0:00:12]}  h6 {[%clk 0:00:18]} 29. Bf4 {[%clk 0:00:05]}  g5 {[%clk 0:00:15]} 30. Be3 {[%clk 0:00:05]}  Qd5+ {[%clk 0:00:13]} 31. Ke1 {[%clk 0:00:00]}  Ne5 {[%clk 0:00:13]} 0-1


[Site "https://www.chess.com"]

[Event "Titled Tuesday Blitz June 13 Late 2023"]
[White "Fisher_TheGalactic"]
[Black "HamedWafa4"]
[WhiteElo "2687"]
[BlackElo "2555"]
[Result "1-0"]
[Round "11"]
[TimeControl "180+2"]
[Date "2023.06.13"]
[WhiteClock "0:01:38"]
[BlackClock "0:00:14"]
[Board "34"]

1. Nf3 {[%clk 0:02:51]}  Nf6 {[%clk 0:02:56]} 2. d4 {[%clk 0:02:50]}  c5 {[%clk 0:02:54]} 3. dxc5 {[%clk 0:02:49]}  e6 {[%clk 0:02:53]} 4. e3 {[%clk 0:02:45]}  Bxc5 {[%clk 0:02:52]} 5. Bd3 {[%clk 0:02:45]}  d5 {[%clk 0:02:51]} 6. O-O {[%clk 0:02:45]}  Nc6 {[%clk 0:02:51]} 7. Qe2 {[%clk 0:02:44]}  O-O {[%clk 0:02:50]} 8. Rd1 {[%clk 0:02:42]}  Qe7 {[%clk 0:02:48]} 9. c4 {[%clk 0:02:42]}  dxc4 {[%clk 0:02:35]} 10. Bxc4 {[%clk 0:02:43]}  b6 {[%clk 0:02:33]} 11. Nc3 {[%clk 0:02:42]}  Bb7 {[%clk 0:02:32]} 12. b3 {[%clk 0:02:42]}  Rfd8 {[%clk 0:02:30]} 13. Bb2 {[%clk 0:02:33]}  Rxd1+ {[%clk 0:02:25]} 14. Rxd1 {[%clk 0:02:32]}  Rd8 {[%clk 0:02:25]} 15. h3 {[%clk 0:02:24]}  Rxd1+ {[%clk 0:02:21]} 16. Qxd1 {[%clk 0:02:25]}  Qd7 {[%clk 0:02:20]} 17. Qe2 {[%clk 0:02:23]}  h6 {[%clk 0:02:11]} 18. a3 {[%clk 0:02:19]}  Qe7 {[%clk 0:01:49]} 19. b4 {[%clk 0:02:18]}  Bd6 {[%clk 0:01:49]} 20. Nb5 {[%clk 0:02:16]}  Bb8 {[%clk 0:01:48]} 21. Nbd4 {[%clk 0:02:07]}  Ne5 {[%clk 0:01:33]} 22. Nxe5 {[%clk 0:02:06]}  Bxe5 {[%clk 0:01:34]} 23. Ba6 {[%clk 0:02:05]}  Bxa6 {[%clk 0:01:19]} 24. Qxa6 {[%clk 0:02:06]}  Qd7 {[%clk 0:01:19]} 25. Qc4 {[%clk 0:02:03]}  Qd5 {[%clk 0:01:11]} 26. Qc8+ {[%clk 0:01:58]}  Kh7 {[%clk 0:01:11]} 27. Qc2+ {[%clk 0:01:59]}  Kg8 {[%clk 0:01:10]} 28. Nc6 {[%clk 0:01:56]}  Bd6 {[%clk 0:00:59]} 29. Nxa7 {[%clk 0:01:53]}  Ne4 {[%clk 0:00:43]} 30. Nc8 {[%clk 0:01:50]}  Bf8 {[%clk 0:00:38]} 31. Nxb6 {[%clk 0:01:47]}  Qb7 {[%clk 0:00:35]} 32. Nc4 {[%clk 0:01:46]}  Qc6 {[%clk 0:00:34]} 33. Qd3 {[%clk 0:01:43]}  Ng5 {[%clk 0:00:31]} 34. Ne5 {[%clk 0:01:39]}  Qc7 {[%clk 0:00:28]} 35. f4 {[%clk 0:01:38]}  Nh7 {[%clk 0:00:19]} 36. Qd7 {[%clk 0:01:37]}  Qc2 {[%clk 0:00:17]} 37. Qxf7+ {[%clk 0:01:37]}  Kh8 {[%clk 0:00:18]} 38. Ng6+ {[%clk 0:01:38]}  Qxg6 {[%clk 0:00:14]} 39. Qxg6 {[%clk 0:01:38]} 1-0


[Site "https://www.chess.com"]

[Event "Titled Tuesday Blitz June 13 Late 2023"]
[White "Saveliev, Alexei"]
[Black "Rodriguez, Santiago"]
[WhiteFideId "24128546"]
[BlackFideId "3000591"]
[WhiteElo "2271"]
[BlackElo "2249"]
[Result "1-0"]
[Round "11"]
[TimeControl "180+2"]
[Date "2023.06.13"]
[WhiteClock "0:00:58"]
[BlackClock "0:00:00"]
[Board "38"]

1. c4 {[%clk 0:03:00]}  e5 {[%clk 0:02:58]} 2. Nc3 {[%clk 0:03:01]}  Nc6 {[%clk 0:02:59]} 3. Nf3 {[%clk 0:03:01]}  f5 {[%clk 0:02:55]} 4. d4 {[%clk 0:03:01]}  e4 {[%clk 0:02:55]} 5. d5 {[%clk 0:03:02]}  exf3 {[%clk 0:02:55]} 6. dxc6 {[%clk 0:03:02]}  bxc6 {[%clk 0:02:55]} 7. exf3 {[%clk 0:02:57]}  Nf6 {[%clk 0:02:54]} 8. Bd3 {[%clk 0:02:57]}  d6 {[%clk 0:02:47]} 9. O-O {[%clk 0:02:55]}  Be7 {[%clk 0:02:47]} 10. Qc2 {[%clk 0:02:55]}  g6 {[%clk 0:02:21]} 11. Bh6 {[%clk 0:02:55]}  Kf7 {[%clk 0:02:21]} 12. Rfe1 {[%clk 0:02:55]}  Re8 {[%clk 0:02:18]} 13. Rad1 {[%clk 0:02:51]}  Rb8 {[%clk 0:02:17]} 14. Bc1 {[%clk 0:02:43]}  Bf8 {[%clk 0:02:08]} 15. Qa4 {[%clk 0:02:43]}  Rxe1+ {[%clk 0:01:56]} 16. Rxe1 {[%clk 0:02:44]}  Bd7 {[%clk 0:01:34]} 17. Qxa7 {[%clk 0:02:43]}  c5 {[%clk 0:01:29]} 18. b3 {[%clk 0:02:26]}  Bc6 {[%clk 0:01:20]} 19. Qa3 {[%clk 0:02:25]}  Bg7 {[%clk 0:01:18]} 20. Bg5 {[%clk 0:02:22]}  Qd7 {[%clk 0:01:13]} 21. Qc1 {[%clk 0:02:21]}  Ra8 {[%clk 0:01:04]} 22. Bh6 {[%clk 0:02:18]}  Bh8 {[%clk 0:01:03]} 23. h4 {[%clk 0:02:19]}  Qc8 {[%clk 0:00:47]} 24. Bg5 {[%clk 0:02:08]}  Qb7 {[%clk 0:00:46]} 25. Bb1 {[%clk 0:02:00]}  Re8 {[%clk 0:00:23]} 26. Rxe8 {[%clk 0:01:58]}  Bxe8 {[%clk 0:00:24]} 27. Bxf6 {[%clk 0:01:42]}  Bxf6 {[%clk 0:00:25]} 28. Nd5 {[%clk 0:01:43]}  Bg7 {[%clk 0:00:20]} 29. Qe1 {[%clk 0:01:36]}  Bf8 {[%clk 0:00:18]} 30. h5 {[%clk 0:01:31]}  Bc6 {[%clk 0:00:18]} 31. hxg6+ {[%clk 0:01:32]}  hxg6 {[%clk 0:00:19]} 32. Nf4 {[%clk 0:01:32]}  Qc8 {[%clk 0:00:14]} 33. a3 {[%clk 0:01:25]}  Bh6 {[%clk 0:00:09]} 34. Nd5 {[%clk 0:01:20]}  Bxd5 {[%clk 0:00:08]} 35. cxd5 {[%clk 0:01:21]}  Bg7 {[%clk 0:00:07]} 36. Bd3 {[%clk 0:01:13]}  Bf6 {[%clk 0:00:03]} 37. a4 {[%clk 0:01:13]}  Qb8 {[%clk 0:00:03]} 38. Qe6+ {[%clk 0:01:08]}  Kg7 {[%clk 0:00:03]} 39. Bc4 {[%clk 0:01:08]}  Qb4 {[%clk 0:00:02]} 40. g3 {[%clk 0:01:04]}  Bd4 {[%clk 0:00:02]} 41. Qe7+ {[%clk 0:01:00]}  Kh6 {[%clk 0:00:00]} 42. Kg2 {[%clk 0:00:58]} 1-0


[Site "https://www.chess.com"]